bitfinex/quotes_BTCUSD_20250726
["timestamp","ask_amount","ask_price","bid_price","bid_amount"]
[1753537991950,1.53127387,118360.0,118350.0,0.06401272]
[1753537992254,6.42672987,118360.0,118350.0,0.06401272]
[1753537992676,6.42672987,118360.0,118350.0,0.00973272]
[1753537992900,6.49207645,118360.0,118350.0,0.00973272]
[1753537994127,6.50793047,118360.0,118350.0,0.00973272]
[1753537994945,5.77115389,118360.0,118350.0,0.00973272]
[1753537995154,1.58097447,118360.0,118350.0,0.00973272]
[1753537995360,6.47643047,118360.0,118350.0,0.00973272]
[1753537997676,6.45103447,118360.0,118350.0,0.00973272]
[1753537999219,6.45545266,118360.0,118350.0,0.00973272]
[1753538000195,1.55999666,118360.0,118350.0,0.00973272]
[1753538000385,6.45545266,118360.0,118350.0,0.00973272]
[1753538001233,1.55999666,118360.0,118350.0,0.00973272]
[1753538001428,6.45545266,118360.0,118350.0,0.00973272]
[1753538002059,6.45229266,118360.0,118350.0,0.00973272]
[1753538002262,1.55683666,118360.0,118350.0,0.00973272]
[1753538002466,6.45229266,118360.0,118350.0,0.00973272]
[1753538004352,1.55683666,118360.0,118350.0,0.00973272]
[1753538004596,6.45229266,118360.0,118350.0,0.00973272]
[1753538005501,6.43643864,118360.0,118350.0,0.00973272]
[1753538006361,1.54098264,118360.0,118350.0,0.00973272]
[1753538006536,6.43643864,118360.0,118350.0,0.00973272]
[1753538008234,1.59238927,118360.0,118350.0,0.00973272]
[1753538008436,6.51324027,118360.0,118350.0,0.00973272]
[1753538009562,6.51918267,118360.0,118350.0,0.00973272]
[1753538012358,6.4940837,118360.0,118350.0,0.00973272]
[1753538013758,6.4616837,118360.0,118350.0,0.00973272]
[1753538016385,6.4780837,118360.0,118350.0,0.00973272]
[1753538017654,6.4616837,118360.0,118350.0,0.00973272]
[1753538018699,1.5922303,118360.0,118350.0,0.00973272]
[1753538018901,6.4876863,118360.0,118350.0,0.00973272]
[1753538020709,1.5890703,118360.0,118350.0,0.00973272]
[1753538020920,6.4845263,118360.0,118350.0,0.00973272]
[1753538022601,6.47065732,118360.0,118350.0,0.00973272]
[1753538022815,6.48452364,118360.0,118350.0,0.00973272]
[1753538024913,1.58906764,118360.0,118350.0,0.00973272]
[1753538025147,6.48452364,118360.0,118350.0,0.00973272]
[1753538026911,1.58906764,118360.0,118350.0,0.00973272]
[1753538027142,6.48452364,118360.0,118350.0,0.00973272]
[1753538028668,6.48452427,118360.0,118350.0,0.00973272]
[1753538031514,6.45481069,118360.0,118350.0,0.00973272]
[1753538031700,6.48453015,118360.0,118350.0,0.00973272]
[1753538032025,6.47660496,118360.0,118350.0,0.00973272]
[1753538032335,6.48453015,118360.0,118350.0,0.00973272]
[1753538032946,6.48453023,118360.0,118350.0,0.00973272]
[1753538033374,6.51929023,118360.0,118350.0,0.00973272]
[1753538034598,6.5192925,118360.0,118350.0,0.00973272]
[1753538034971,6.4845325,118360.0,118350.0,0.00973272]
[1753538035644,6.4876925,118360.0,118350.0,0.00973272]
[1753538036392,6.5179925,118360.0,118350.0,0.00973272]
[1753538036600,5.42192386,118330.0,118320.0,0.11026754]
[1753538036821,6.38811911,118330.0,118320.0,0.10539045]
[1753538037455,6.38811911,118330.0,118320.0,0.12849045]
[1753538038567,6.38911911,118330.0,118320.0,0.06086291]
[1753538039641,6.39011911,118330.0,118320.0,0.06086291]
[1753538041367,6.39210911,118330.0,118320.0,0.03982291]
[1753538041823,6.39210911,118330.0,118320.0,0.05562291]
[1753538042257,6.41486911,118330.0,118320.0,0.00506291]
[1753538042481,6.41486911,118330.0,118320.0,0.00012291]
[1753538042707,6.41486911,118330.0,118320.0,0.02322291]
[1753538042943,6.39210911,118330.0,118320.0,0.05492291]
[1753538043193,6.41486911,118330.0,118320.0,0.00012291]
[1753538043426,6.39210911,118330.0,118320.0,0.03912291]
[1753538043853,6.47658641,118330.0,118320.0,0.05492291]
[1753538044152,6.47658641,118330.0,118320.0,0.00012291]
[1753538044153,6.49934641,118330.0,118320.0,0.00012291]
[1753538044590,6.49934641,118330.0,118320.0,0.02322291]
[1753538045017,6.47658641,118330.0,118320.0,0.02322291]
[1753538045226,6.47658641,118330.0,118320.0,0.03912291]
[1753538047195,6.39210911,118330.0,118320.0,0.03912291]
[1753538047846,6.41486911,118330.0,118320.0,0.03912291]
[1753538048308,1.51941311,118330.0,118320.0,0.03912291]
[1753538048519,6.41486911,118330.0,118320.0,0.03912291]
[1753538048704,6.41486911,118330.0,118320.0,0.05462291]
[1753538049000,6.41486911,118330.0,118320.0,0.00012291]
[1753538049417,6.41486911,118330.0,118320.0,0.02322291]
[1753538049649,6.41486911,118330.0,118320.0,0.03832291]
[1753538050414,6.49934641,118330.0,118320.0,0.00012291]
[1753538051630,6.41486911,118330.0,118320.0,0.00012291]
[1753538051841,1.49466311,118330.0,118320.0,0.05652291]
[1753538052044,1.49466311,118330.0,118320.0,0.05946291]
[1753538052045,6.39011911,118330.0,118320.0,0.05946291]
[1753538052256,5.89369082,118330.0,118320.0,0.05946291]
[1753538052710,5.50785351,118330.0,118320.0,0.23694769]
[1753538052924,6.00428209,118330.0,118320.0,0.05946291]
[1753538053408,5.5078538,118330.0,118320.0,0.05946291]
[1753538053628,6.00228209,118330.0,118320.0,0.05946291]
[1753538053839,6.00228209,118330.0,118320.0,0.06046291]
[1753538054066,5.89169111,118330.0,118320.0,0.06046291]
[1753538054277,6.01973111,118330.0,118320.0,0.06146291]
[1753538054713,5.89169111,118330.0,118320.0,0.06146291]
[1753538054928,6.01973111,118330.0,118320.0,0.06146291]
[1753538055137,6.01973111,118330.0,118320.0,0.06046291]
[1753538055351,6.01973111,118330.0,118320.0,0.05946291]
[1753538055780,6.3881194,118330.0,118320.0,0.05946291]
[1753538056814,5.97901656,118330.0,118320.0,0.05946291]
[1753538057627,6.00441456,118330.0,118320.0,0.05946291]
[1753538061618,1.10895856,118330.0,118320.0,0.05946291]
[1753538061822,6.00441456,118330.0,118320.0,0.05946291]
[1753538067276,1.10895856,118330.0,118320.0,0.05946291]
[1753538067605,6.00441456,118330.0,118320.0,0.05946291]
[1753538069953,1.10895856,118330.0,118320.0,0.05946291]
[1753538069954,6.00441456,118330.0,118320.0,0.05946291]
[1753538071315,6.00640456,118330.0,118320.0,0.05652291]
[1753538071725,6.00640456,118330.0,118320.0,0.05968291]
[1753538073247,5.67873082,118330.0,118320.0,0.05968291]
[1753538073468,6.00640456,118330.0,118320.0,0.05968291]
[1753538078956,6.41597338,118330.0,118320.0,0.05968291]
[1753538079147,1.52051738,118330.0,118320.0,0.05968291]
[1753538079356,6.41597338,118330.0,118320.0,0.05968291]
[1753538081168,6.41597338,118330.0,118320.0,0.05652291]
[1753538081169,6.44049338,118330.0,118320.0,0.05652291]
[1753538081828,6.41597338,118330.0,118320.0,0.05652291]
[1753538083212,6.44049338,118330.0,118320.0,0.03142291]
[1753538083894,6.44049338,118330.0,118320.0,0.05638291]
[1753538088980,6.44351338,118330.0,118320.0,0.00012291]
[1753538089625,6.44049338,118330.0,118320.0,0.00012291]
[1753538090256,6.44149338,118330.0,118320.0,0.00012291]
[1753538090880,6.52597068,118330.0,118320.0,0.00012291]
[1753538091314,6.52697068,118330.0,118320.0,0.00012291]
[1753538091547,6.52999068,118330.0,118320.0,0.00012291]
[1753538091732,1.63453468,118330.0,118320.0,0.00012291]
[1753538091985,6.44249338,118330.0,118320.0,0.00012291]
[1753538094468,5.70525082,118330.0,118320.0,0.00012291]
[1753538094678,6.44249338,118330.0,118320.0,0.00012291]
[1753538096371,1.54703738,118330.0,118320.0,0.00012291]
[1753538096516,6.44559338,118330.0,118320.0,0.00012291]
[1753538097314,6.44249338,118330.0,118320.0,0.00012291]
[1753538097500,6.41793338,118330.0,118320.0,0.02416291]
[1753538097738,6.41793338,118330.0,118320.0,0.05486291]
[1753538098158,6.0473221,118330.0,118320.0,0.06012291]
[1753538098645,6.02987308,118330.0,118320.0,0.06012291]
[1753538099089,6.0473221,118330.0,118320.0,0.06012291]
[1753538099364,6.1317994,118330.0,118320.0,0.06012291]
[1753538099584,6.50042068,118330.0,118320.0,0.06012291]
[1753538100018,6.41800338,118330.0,118320.0,0.06012291]
[1753538100889,6.41800338,118330.0,118320.0,0.05696291]
[1753538102661,6.44218338,118330.0,118320.0,0.05486291]
[1753538102891,6.44218338,118330.0,118320.0,0.01572291]
[1753538103254,6.44218338,118330.0,118320.0,0.03202291]
[1753538103871,6.41800338,118330.0,118320.0,0.06132291]
[1753538104728,6.0493821,118330.0,118320.0,0.06132291]
[1753538105725,6.0473221,118330.0,118320.0,0.06132291]
[1753538107804,1.1518661,118330.0,118320.0,0.06132291]
[1753538108028,6.0473221,118330.0,118320.0,0.06132291]
[1753538108464,1.1518661,118330.0,118320.0,0.06132291]
[1753538108678,6.0473221,118330.0,118320.0,0.06132291]
[1753538112642,6.0493721,118330.0,118320.0,0.06132291]
[1753538112955,1.1539161,118330.0,118320.0,0.06132291]
[1753538113162,6.0493721,118330.0,118320.0,0.06132291]
[1753538113961,1.1539161,118330.0,118320.0,0.06132291]
[1753538114198,6.0493721,118330.0,118320.0,0.06132291]
[1753538114677,6.41799338,118330.0,118320.0,0.06132291]
[1753538115063,1.52253738,118330.0,118320.0,0.06132291]
[1753538115381,6.41799338,118330.0,118320.0,0.06132291]
[1753538116083,1.52253738,118330.0,118320.0,0.06132291]
[1753538116257,6.41799338,118330.0,118320.0,0.06132291]
[1753538118080,1.52253738,118330.0,118320.0,0.06132291]
[1753538118445,6.41799338,118330.0,118320.0,0.06132291]
[1753538120883,6.41799338,118330.0,118320.0,0.05816291]
[1753538121016,6.44217338,118330.0,118320.0,0.05816291]
[1753538122392,6.44217338,118330.0,118320.0,0.05606291]
[1753538128428,1.54671738,118330.0,118320.0,0.05606291]
[1753538128608,6.44217338,118330.0,118320.0,0.05606291]
[1753538130121,6.44521338,118330.0,118320.0,0.00012291]
[1753538131444,6.44217338,118330.0,118320.0,0.00012291]
[1753538134507,1.54671738,118330.0,118320.0,0.00012291]
[1753538134742,6.44217338,118330.0,118320.0,0.00012291]
[1753538136708,6.44217338,118330.0,118320.0,0.01542291]
[1753538138684,6.44217338,118330.0,118320.0,0.00012291]
[1753538145152,6.46784975,118330.0,118320.0,0.00012291]
[1753538147482,6.46784975,118330.0,118320.0,0.03212291]
[1753538147628,6.46784975,118330.0,118320.0,0.05471291]
[1753538148774,6.46784975,118330.0,118320.0,0.03851291]
[1753538149532,6.46784975,118330.0,118320.0,0.00012291]
[1753538149955,6.47088975,118330.0,118320.0,0.00012291]
[1753538152168,6.46784975,118330.0,118320.0,0.00012291]
[1753538155440,6.50190975,118330.0,118320.0,0.00012291]
[1753538157070,6.52569687,118330.0,118320.0,0.00012291]
[1753538157288,6.53164372,118330.0,118320.0,0.00012291]
[1753538157725,6.61612102,118330.0,118320.0,0.00012291]
[1753538158870,6.53164372,118330.0,118320.0,0.00012291]
[1753538167282,6.53163117,118330.0,118320.0,0.00012291]
[1753538167530,6.52369695,118330.0,118320.0,0.00012291]
[1753538167782,6.53161918,118330.0,118320.0,0.00012291]
[1753538170388,6.5316168,118330.0,118320.0,0.00012291]
[1753538171625,6.6160941,118330.0,118320.0,0.00012291]
[1753538172337,6.5316168,118330.0,118320.0,0.00012291]
[1753538174229,6.5006168,118330.0,118320.0,0.00012291]
[1753538174649,6.5327168,118330.0,118320.0,0.00012291]
[1753538175955,1.6372608,118330.0,118320.0,0.00012291]
[1753538176113,6.5327168,118330.0,118320.0,0.00012291]
[1753538176325,6.6171941,118330.0,118320.0,0.00012291]
[1753538176919,6.5327168,118330.0,118320.0,0.00012291]
[1753538177525,6.53271688,118330.0,118320.0,0.00012291]
[1753538179255,6.5327172,118330.0,118320.0,0.00012291]
[1753538182430,6.5327172,118330.0,118320.0,0.00012291]
[1753538182856,6.5006172,118330.0,118320.0,0.00012291]
[1753538183103,1.6021012,118330.0,118320.0,0.00012291]
[1753538183360,6.4975572,118330.0,118320.0,0.00012291]
[1753538183798,6.5820345,118330.0,118320.0,0.00012291]
[1753538183971,6.4975572,118330.0,118320.0,0.00012291]
[1753538186622,1.6021012,118330.0,118320.0,0.00012291]
[1753538186929,6.4975572,118330.0,118320.0,0.00012291]
[1753538188333,6.4975572,118330.0,118320.0,0.02374291]
[1753538191102,6.3695572,118330.0,118320.0,0.02374291]
[1753538191303,1.5778412,118330.0,118320.0,0.02374291]
[1753538191513,6.4732972,118330.0,118320.0,0.02891291]
[1753538192340,6.10262592,118330.0,118320.0,0.06081291]
[1753538192544,6.07291847,118330.0,118320.0,0.06081291]
[1753538194008,6.44153975,118330.0,118320.0,0.06081291]
[1753538194448,6.44946816,118330.0,118320.0,0.06081291]
[1753538195487,6.44153975,118330.0,118320.0,0.06081291]
[1753538199976,1.54608375,118330.0,118320.0,0.06081291]
[1753538200182,6.44153975,118330.0,118320.0,0.06081291]
[1753538204835,6.07291847,118330.0,118320.0,0.06081291]
[1753538205732,6.44153975,118330.0,118320.0,0.06081291]
[1753538207427,6.41586338,118330.0,118320.0,0.06081291]
[1753538210651,1.52040738,118330.0,118320.0,0.06081291]
[1753538210886,6.41586338,118330.0,118320.0,0.06081291]
[1753538213403,6.4418551,118330.0,118320.0,0.06081291]
[1753538213860,6.45035998,118330.0,118320.0,0.06081291]
[1753538214299,6.0817387,118330.0,118320.0,0.06081291]
[1753538215264,6.45035998,118330.0,118320.0,0.06081291]
[1753538215891,1.55490398,118330.0,118320.0,0.06081291]
[1753538216227,6.45035998,118330.0,118320.0,0.06081291]
[1753538216651,6.0817387,118330.0,118320.0,0.06081291]
[1753538216833,5.9538187,118330.0,118320.0,0.06081291]
[1753538217172,6.0816987,118330.0,118320.0,0.06081291]
[1753538219379,1.1862427,118330.0,118320.0,0.06081291]
[1753538219620,6.0816987,118330.0,118320.0,0.06081291]
[1753538220503,5.9538187,118330.0,118320.0,0.06081291]
[1753538220782,5.71307742,118330.0,118320.0,0.06081291]
[1753538220983,5.92782698,118330.0,118320.0,0.06081291]
[1753538221194,6.05570698,118330.0,118320.0,0.06081291]
[1753538226575,1.16025098,118330.0,118320.0,0.06081291]
[1753538226782,6.05570698,118330.0,118320.0,0.06081291]
[1753538227998,6.05769698,118330.0,118320.0,0.06081291]
[1753538228185,6.05769698,118330.0,118320.0,0.03202291]
[1753538228466,6.08148698,118330.0,118320.0,0.03202291]
[1753538228680,6.45010826,118330.0,118320.0,0.03202291]
[1753538229093,6.08148698,118330.0,118320.0,0.03202291]
[1753538229835,1.18603098,118330.0,118320.0,0.03202291]
[1753538230044,6.08148698,118330.0,118320.0,0.03202291]
[1753538230249,6.08148698,118330.0,118320.0,0.05536291]
[1753538233607,6.05769698,118330.0,118320.0,0.05536291]
[1753538234812,6.08148698,118330.0,118320.0,0.03202291]
[1753538238221,6.08148698,118330.0,118320.0,0.05536291]
[1753538242127,6.08148698,118330.0,118320.0,0.03202291]
[1753538243858,6.45010826,118330.0,118320.0,0.03202291]
[1753538245757,6.45309826,118330.0,118320.0,0.00012291]
[1753538246422,6.53757556,118330.0,118320.0,0.00012291]
[1753538246631,6.59891411,118330.0,118320.0,0.00012291]
[1753538247533,0.01690823,118280.0,118270.0,0.17518796]
[1753538247743,4.9208186,118280.0,118270.0,0.17713804]
[1753538247956,4.9208186,118280.0,118270.0,0.23625073]
[1753538248166,4.9208186,118280.0,118270.0,0.25316054]
[1753538248621,4.91236423,118280.0,118270.0,0.26161534]
[1753538248831,4.920867,118280.0,118270.0,0.26161534]
[1753538249024,4.91241263,118280.0,118270.0,0.26161491]
[1753538249673,4.92086707,118280.0,118270.0,0.26417052]
[1753538249884,5.48995736,118280.0,118270.0,0.26417045]
[1753538250112,4.92086707,118280.0,118270.0,0.26617045]
[1753538250527,4.92086707,118280.0,118270.0,0.26917045]
[1753538250742,4.92086707,118280.0,118270.0,0.31032539]
[1753538251214,5.08995736,118280.0,118270.0,0.2004832]
[1753538251492,5.08995736,118280.0,118270.0,0.20893828]
[1753538251712,5.08995736,118280.0,118270.0,0.21739329]
[1753538252272,5.09014976,118280.0,118270.0,0.20893828]
[1753538252488,5.08169554,118280.0,118270.0,0.21739357]
[1753538252892,5.0732411,118280.0,118270.0,0.06757]
[1753538253738,4.90395834,118280.0,118270.0,0.31123566]
[1753538253951,4.84e-05,118280.0,118270.0,0.67985694]
[1753538254163,0.5000484,118280.0,118270.0,0.67985694]
[1753538254407,0.5000484,118280.0,118270.0,0.67485694]
[1753538255062,0.5000484,118280.0,118270.0,0.67785694]
[1753538255325,0.5000484,118280.0,118270.0,0.67585694]
[1753538256169,0.50850241,118280.0,118270.0,0.67585694]
[1753538256671,0.50850241,118280.0,118270.0,0.67485694]
[1753538256894,0.50850241,118280.0,118270.0,0.67985694]
[1753538257584,0.5000484,118280.0,118270.0,0.67985694]
[1753538257808,0.50850234,118280.0,118270.0,0.67985694]
[1753538258249,0.5000484,118280.0,118270.0,0.67985694]
[1753538258948,0.50850234,118280.0,118270.0,0.67985694]
[1753538259191,0.5000484,118280.0,118270.0,0.67985694]
[1753538260025,4.84e-05,118280.0,118270.0,0.67985694]
[1753538260466,0.00850234,118280.0,118270.0,0.67985694]
[1753538261110,0.01695642,118280.0,118270.0,0.67985694]
[1753538261762,0.00850234,118280.0,118270.0,0.67985694]
[1753538261943,0.01695635,118280.0,118270.0,0.67985694]
[1753538262154,4.84e-05,118280.0,118270.0,0.67985694]
[1753538262490,0.00850227,118280.0,118270.0,0.67985694]
[1753538262711,0.51695628,118280.0,118270.0,0.67985694]
[1753538262917,0.50850227,118280.0,118270.0,0.67985694]
[1753538263120,0.51695628,118280.0,118270.0,0.67985694]
[1753538263362,0.00850227,118280.0,118270.0,0.67985694]
[1753538264556,0.01695628,118280.0,118270.0,0.67985694]
[1753538265419,0.01695628,118280.0,118270.0,0.31123566]
[1753538265767,0.01695628,118280.0,118270.0,0.67985694]
[1753538266187,4.84e-05,118280.0,118270.0,0.67985694]
[1753538266407,0.5000484,118280.0,118270.0,0.67985694]
[1753538266622,0.50850227,118280.0,118270.0,0.67985694]
[1753538266801,0.00850227,118280.0,118270.0,0.67985694]
[1753538267267,0.01695621,118280.0,118270.0,0.67985694]
[1753538267475,0.02541029,118280.0,118270.0,0.67985694]
[1753538268084,0.02541022,118280.0,118270.0,0.67985694]
[1753538268624,0.01695621,118280.0,118270.0,0.67985694]
[1753538269682,0.02541029,118280.0,118270.0,0.67985694]
[1753538269881,0.51695621,118280.0,118270.0,0.67985694]
[1753538270316,0.01695621,118280.0,118270.0,0.67985694]
[1753538271689,0.02541029,118280.0,118270.0,0.67985694]
[1753538271914,0.01695621,118280.0,118270.0,0.67985694]
[1753538272128,0.02541022,118280.0,118270.0,0.67985694]
[1753538272985,0.01695621,118280.0,118270.0,0.67985694]
[1753538273332,0.52541022,118280.0,118270.0,0.67985694]
[1753538273745,0.02541022,118280.0,118270.0,0.67985694]
[1753538273951,0.03386437,118280.0,118270.0,0.67985694]
[1753538274419,0.02541022,118280.0,118270.0,0.67985694]
[1753538274620,0.03386437,118280.0,118270.0,0.67985694]
[1753538274819,0.02541022,118280.0,118270.0,0.67985694]
[1753538276991,0.52541022,118280.0,118270.0,0.67985694]
[1753538277289,0.02541022,118280.0,118270.0,0.67985694]
[1753538278248,0.03386437,118280.0,118270.0,0.67985694]
[1753538278425,0.0338643,118280.0,118270.0,0.67985694]
[1753538279402,0.02541022,118280.0,118270.0,0.67985694]
[1753538280026,0.01695621,118280.0,118270.0,0.67985694]
[1753538280229,0.02541022,118280.0,118270.0,0.67985694]
[1753538280435,0.52541022,118280.0,118270.0,0.67985694]
[1753538280796,0.42541022,118280.0,118270.0,0.67985694]
[1753538281264,0.41695621,118280.0,118270.0,0.67985694]
[1753538282339,0.42541022,118280.0,118270.0,0.67985694]
[1753538282639,0.4000484,118280.0,118270.0,0.67985694]
[1753538283103,0.40850227,118280.0,118270.0,0.67985694]
[1753538283515,0.5000484,118280.0,118270.0,0.67985694]
[1753538284134,0.50850227,118280.0,118270.0,0.67985694]
[1753538284530,0.00850227,118280.0,118270.0,0.67985694]
[1753538287030,4.84e-05,118280.0,118270.0,0.67985694]
[1753538287264,0.5000484,118280.0,118270.0,0.67985694]
[1753538287473,0.50850241,118280.0,118270.0,0.67985694]
[1753538287670,0.00850234,118280.0,118270.0,0.67985694]
[1753538288093,0.00850227,118280.0,118270.0,0.67985694]
[1753538288863,0.01695628,118280.0,118270.0,0.67985694]
[1753538289192,0.00850227,118280.0,118270.0,0.67985694]
[1753538289807,0.01695628,118280.0,118270.0,0.80769694]
[1753538289999,0.00850227,118280.0,118270.0,0.80769694]
[1753538290198,0.01695621,118280.0,118270.0,0.80769694]
[1753538290741,0.51695621,118280.0,118270.0,0.80769694]
[1753538291086,0.01695621,118280.0,118270.0,0.80769694]
[1753538291498,0.02541036,118280.0,118270.0,0.80769694]
[1753538291758,0.01695621,118280.0,118270.0,0.80769694]
[1753538291997,0.02541029,118280.0,118270.0,0.80769694]
[1753538292401,0.02541029,118280.0,118270.0,0.75850068]
[1753538292849,0.05838451,118280.0,118270.0,0.75850068]
[1753538293061,0.04993029,118280.0,118270.0,0.75850068]
[1753538293550,0.05838459,118280.0,118270.0,0.75850068]
[1753538293759,0.05838451,118280.0,118270.0,0.75850068]
[1753538296241,0.05838451,118280.0,118270.0,0.3898794]
[1753538296445,0.04993029,118280.0,118270.0,0.81608378]
[1753538296861,0.05838451,118280.0,118270.0,0.81608378]
[1753538297072,0.04993029,118280.0,118270.0,0.81608378]
[1753538297509,0.05838451,118280.0,118270.0,0.81608378]
[1753538297966,0.05838459,118280.0,118270.0,0.81608378]
[1753538298178,0.05838451,118280.0,118270.0,0.81608378]
[1753538298638,0.05838444,118280.0,118270.0,0.75850068]
[1753538299295,0.05838444,118280.0,118270.0,0.3898794]
[1753538299518,0.06683874,118280.0,118270.0,0.75850068]
[1753538299744,0.05838444,118280.0,118270.0,0.75850068]
[1753538300656,0.04993029,118280.0,118270.0,0.75850068]
[1753538301370,0.05838451,118280.0,118270.0,0.75850068]
[1753538302691,0.05838451,118280.0,118270.0,0.3898794]
[1753538302913,0.05838451,118280.0,118270.0,0.75850068]
[1753538303166,0.04993029,118280.0,118270.0,0.75850068]
[1753538303325,0.05838451,118280.0,118270.0,0.75850068]
[1753538303721,0.05838451,118280.0,118270.0,0.74220068]
[1753538303923,0.06683888,118280.0,118270.0,0.74220068]
[1753538304126,0.05838451,118280.0,118270.0,0.74220068]
[1753538304989,0.04993029,118280.0,118270.0,0.74220068]
[1753538305448,0.05838444,118280.0,118270.0,0.74216068]
[1753538306293,0.05838444,118280.0,118270.0,0.61436068]
[1753538306502,0.05838444,118280.0,118270.0,0.74216068]
[1753538308513,0.05838444,118280.0,118270.0,0.72576068]
[1753538310271,0.06683866,118280.0,118270.0,0.72576068]
[1753538311964,0.06683866,118280.0,118270.0,0.78177563]
[1753538312750,0.06683866,118280.0,118270.0,0.72576068]
[1753538314673,0.06683916,118280.0,118270.0,0.72576068]
[1753538315485,0.05838479,118280.0,118270.0,0.72576068]
[1753538315872,0.06683916,118280.0,118270.0,0.72576068]
[1753538316993,0.06683909,118280.0,118270.0,0.72576068]
[1753538317250,0.06683909,118280.0,118270.0,0.81023798]
[1753538317885,0.06683952,118280.0,118270.0,0.81023798]
[1753538319042,0.06683952,118280.0,118270.0,0.4416167]
[1753538319255,0.06683952,118280.0,118270.0,0.81023798]
[1753538321158,0.06683988,118280.0,118270.0,0.68243798]
[1753538321348,0.06683988,118280.0,118270.0,0.81023798]
[1753538321557,0.05838544,118280.0,118270.0,0.81023798]
[1753538322327,0.04993107,118280.0,118270.0,0.81023798]
[1753538325132,0.05838544,118280.0,118270.0,0.81023798]
[1753538325846,0.05838544,118280.0,118270.0,0.72576068]
[1753538326561,0.05838544,118280.0,118270.0,0.3571394]
[1753538326781,0.05838544,118280.0,118270.0,0.72576068]
[1753538327406,0.05838544,118280.0,118270.0,0.3571394]
[1753538327689,0.04993107,118280.0,118270.0,0.72576068]
[1753538327869,0.04993107,118280.0,118270.0,0.81023798]
[1753538328302,0.04993107,118280.0,118270.0,0.4416167]
[1753538328512,0.04993107,118280.0,118270.0,0.81023798]
[1753538330193,0.05838544,118280.0,118270.0,0.81023798]
[1753538331546,0.06683988,118280.0,118270.0,0.81023798]
[1753538332398,0.06683988,118280.0,118270.0,0.4416167]
[1753538332599,0.06683988,118280.0,118270.0,0.81023798]
[1753538332814,0.06683988,118280.0,118270.0,0.72576068]
[1753538333026,0.05838544,118280.0,118270.0,0.72576068]
[1753538333788,0.04147649,118280.0,118270.0,0.72576068]
[1753538336007,0.04993079,118280.0,118270.0,0.72576068]
[1753538336458,0.01695649,118280.0,118270.0,0.72576068]
[1753538336663,0.01695649,118280.0,118270.0,0.81023798]
[1753538337707,0.01695642,118280.0,118270.0,0.81023798]
[1753538337922,0.00850234,118280.0,118270.0,0.81023798]
[1753538338143,0.00850227,118280.0,118270.0,0.82633798]
[1753538338675,0.00850241,118280.0,118270.0,0.82633798]
[1753538338883,0.00850241,118280.0,118270.0,0.4577167]
[1753538339113,0.00850241,118280.0,118270.0,0.82633798]
[1753538339306,0.00850241,118280.0,118270.0,0.74186068]
[1753538340386,0.00850234,118280.0,118270.0,0.74186068]
[1753538341012,0.00850227,118280.0,118270.0,0.74186068]
[1753538343230,0.00850227,118280.0,118270.0,0.72576068]
[1753538343441,0.00850227,118280.0,118270.0,0.81023798]
[1753538346333,4.84e-05,118280.0,118270.0,0.81023798]
[1753538347740,0.00850227,118280.0,118270.0,0.81023798]
[1753538349788,4.84e-05,118280.0,118270.0,0.81023798]
[1753538354690,4.84e-05,118280.0,118270.0,0.4416167]
[1753538354897,0.00850234,118280.0,118270.0,0.81023798]
[1753538355915,4.84e-05,118280.0,118270.0,0.81023798]
[1753538357396,0.00850234,118280.0,118270.0,0.4416167]
[1753538357579,0.00850234,118280.0,118270.0,0.81023798]
[1753538357783,4.84e-05,118280.0,118270.0,0.72576068]
[1753538358471,0.00850241,118280.0,118270.0,0.72576068]
[1753538358675,0.04261649,118280.0,118270.0,0.2293394]
[1753538358887,0.05107064,118280.0,118270.0,0.72572068]
[1753538359103,0.04261649,118280.0,118270.0,0.4415767]
[1753538359943,0.03416241,118280.0,118270.0,0.4415767]
[1753538360511,0.04261656,118280.0,118270.0,0.4415767]
[1753538361133,0.04261656,118280.0,118270.0,0.81019798]
[1753538361336,0.03416241,118280.0,118270.0,0.81019798]
[1753538361742,0.04261656,118280.0,118270.0,0.81019798]
[1753538363721,0.03416241,118280.0,118270.0,0.81019798]
[1753538364266,0.04261656,118280.0,118270.0,0.81019798]
[1753538364473,0.03416241,118280.0,118270.0,0.81019798]
[1753538364884,0.03416241,118280.0,118270.0,0.4415767]
[1753538365072,0.03416241,118280.0,118270.0,0.81019798]
[1753538365566,0.00850241,118280.0,118270.0,0.81019798]
[1753538367166,0.01695656,118280.0,118270.0,0.81019798]
[1753538367753,0.00850241,118280.0,118270.0,0.81019798]
[1753538368148,0.01695656,118280.0,118270.0,0.81019798]
[1753538368349,0.01695656,118280.0,118270.0,0.4415767]
[1753538368545,0.01695656,118280.0,118270.0,0.81019798]
[1753538368746,4.84e-05,118280.0,118270.0,0.81019798]
[1753538369360,0.00850227,118280.0,118270.0,0.81019798]
[1753538369981,0.03541227,118280.0,118270.0,0.4136567]
[1753538370198,0.04386628,118280.0,118270.0,0.78227798]
[1753538370506,0.04386628,118280.0,118270.0,0.80856798]
[1753538370721,0.08769043,118280.0,118270.0,0.3271894]
[1753538370923,0.07923628,118280.0,118270.0,0.3271894]
[1753538371124,0.08769036,118280.0,118270.0,0.3271894]
[1753538371341,0.08769036,118280.0,118270.0,0.1994694]
[1753538371550,0.08769036,118280.0,118270.0,0.33777973]
[1753538372113,0.48769036,118280.0,118270.0,0.33777973]
[1753538372310,0.47923628,118280.0,118270.0,0.33777973]
[1753538372673,0.47923628,118280.0,118270.0,0.33985973]
[1753538374401,0.48769043,118280.0,118270.0,0.33985973]
[1753538374609,0.4961448,118280.0,118270.0,0.20368501]
[1753538374999,0.49614473,118280.0,118270.0,0.33777973]
[1753538375849,0.49614473,118280.0,118270.0,0.32087007]
[1753538376094,0.50459917,118280.0,118270.0,0.33777988]
[1753538376589,0.5045991,118280.0,118270.0,0.3462346]
[1753538378714,0.48769043,118280.0,118270.0,0.3462346]
[1753538378952,0.49614473,118280.0,118270.0,0.3462346]
[1753538382423,0.50459917,118280.0,118270.0,0.33564427]
[1753538382626,0.49614473,118280.0,118270.0,0.33564427]
[1753538383053,0.49614473,118280.0,118270.0,0.33772427]
[1753538383895,0.48769043,118280.0,118270.0,0.33772427]
[1753538384104,0.48769043,118280.0,118270.0,0.36099427]
[1753538384321,0.48769043,118280.0,118270.0,0.44547157]
[1753538384744,0.48769043,118280.0,118270.0,0.42220157]
[1753538387296,0.44693628,118280.0,118270.0,0.42220157]
[1753538387800,0.44693628,118280.0,118270.0,0.44547157]
[1753538388090,0.44386628,118280.0,118270.0,0.44547157]
[1753538388463,0.44386628,118280.0,118270.0,0.44849157]
[1753538388676,0.44386628,118280.0,118270.0,0.81711285]
[1753538390655,0.40850227,118280.0,118270.0,0.84841285]
[1753538393530,0.40850227,118280.0,118270.0,0.83301285]
[1753538393889,0.40850227,118280.0,118270.0,0.81711285]
[1753538398050,0.4000484,118280.0,118270.0,0.81711285]
[1753538399041,0.40850241,118280.0,118270.0,0.81711285]
[1753538400444,0.4000484,118280.0,118270.0,0.81711285]
[1753538400646,0.40850234,118280.0,118270.0,0.81711285]
[1753538400849,0.41695635,118280.0,118270.0,0.81711285]
[1753538401000,0.41695635,118280.0,118270.0,0.83351285]
[1753538401196,0.42541043,118280.0,118270.0,0.84931285]
[1753538402220,0.42541043,118280.0,118270.0,0.83351285]
[1753538403371,0.4000484,118280.0,118270.0,0.83351285]